{"text_format":"1","workbook":"xlsx","n_sheets":3,"sheets":["通所リハ）大規模型事業所（特例）計算シート","記入例","特例（参考）"],"not_rendered":{"charts":0,"images":3,"macros":1,"external_links":0,"defined_names":3,"comments":0,"pivot_tables":0},"unopened":[],"bounds":{"document_bytes":16777216,"sheet_cells":100000,"rows_first":2000,"rows_last":500,"rows_between":2000,"halvings":0,"cell_chars":16384,"cell_head_chars":4096},"cells_cut":0,"cells_raw":0,"read":"whole","date_system":"1900"}

{"sheet":"通所リハ）大規模型事業所（特例）計算シート","index":0,"n_rows":30,"n_cols":21,"rows_kept":30,"cut":false,"hidden":false,"merged":[[1,2,1,18],[25,13,25,16],[25,1,26,1]]}
["大規模型事業所（特例）計算シート　"]
[]
[]
[null,"入力項目",null,null,null,null,null,null,null,null,"結果"]
[]
[null,"（１）太枠の中に前年の月毎延べ利用者数を入力してください。",null,null,null,null,null,"人",null,null,"■基本となる事業所規模"]
[null,null,null,null,null,null,null,null,null,null,{"$f":"IF($G$6<=750,\"750人以内（通常規模型）\",\"750人超（大規模型）\")","v":"750人以内（通常規模型）"}]
[]
[null,"（２）太枠の中に月当たりの利用者数と、加算を算定する利用者数を入力してください。"]
[null,"月当たりの全利用者数（要介護のみ）",null,"人",null,null,null,null,null,null,"■大規模型事業所（特例）の要件"]
[null,"ﾘﾊﾏﾈ加算を算定する利用者数",null,"人",null,null,null,null,null,null,"①リハビリテーションマネジメント加算の算定率80％以上"]
[null,null,null,null,null,null,null,null,null,null,{"$f":"IF(P12>=0.8,\"要件①を満たしている\",\"要件①を満たしていない\")","v":{"$error":"#DIV/0!"}},null,null,null,"算定率",{"$f":"$C$11/$C$10","v":{"$error":"#DIV/0!"}}]
[null,null,null,null,null,null,null,null,null,null,null,null,null,null,"（あと",{"$f":"IF(P12<0.8,ROUNDUP(C10*0.8-C11,0),\"-\")","v":{"$error":"#DIV/0!"}},"名の算定が必要です）"]
[null,"（３）太枠の中に、利用時間毎の月延べ利用者数を入力してください。"]
[null,"１～２時間利用",null,"人",null,null,null,null,null,null,"②リハビリテーション専門職の配置が10:1以上"]
[null,"２～３時間利用",null,"人",null,null,null,null,null,null,{"$f":"IF($P$16<=10,\"要件②を満たしている\",\"要件②を満たしていない\")","v":{"$error":"#DIV/0!"}},null,null,null,"配置",{"$f":"$O$20/O22","v":{"$error":"#DIV/0!"}},":1配置"]
[null,"３～４時間利用",null,"人",null,null,null,null,null,null,null,null,null,null,"（あと",{"$f":"IF(P16>10,(O20/10-O22),\"-\")","v":{"$error":"#DIV/0!"}},"人時/月の配置が必要です）"]
[null,"４～５時間利用",null,"人"]
[null,"５～６時間利用",null,"人"]
[null,"６～７時間利用",null,"人",null,null,null,null,null,null,null,"・利用時間×利用人数の合計",null,null,{"$f":"C15*1+C16*2+C17*3+C18*4+C19*5+C20*6+C21*7","v":0},"（人時/月）"]
[null,"７～８時間利用",null,"人"]
[null,null,null,null,null,null,null,null,null,null,null,"・ﾘﾊ専門職の勤務時間の合計",null,null,{"$f":"SUM(OFFSET(T26,0,0,COUNT(T:T),1))","v":0},"（人時/月）"]
[null,"（４）太枠の中に、１日あたりの勤務時間、勤務日、該当する人数を入力してください。"]
[]
[null,null,"勤務時間/日",null,"勤務日/月",null,"該当する人数",null,null,null,null,null,null,null,null,null,null,null,null,"結果"]
[null,"所定労働時間のうち、通所ﾘﾊﾋﾞﾘﾃｰｼｮﾝの業務に従事している時間\n",null,"時間/日",null,"日",null,"人",null,null,null,null,"あなたの事業所は",{"$f":"IF(OR(G6<=750,AND(P12>=0.8,$P$16<=10)),\"通常規模型リハビリテーション費\",\"大規模型リハビリテーション費\")","v":{"$error":"#DIV/0!"}},null,null,null,null,null,{"$f":"PRODUCT(C26,E26,G26)","v":0},"人時/月"]
[null,null,null,"時間/日",null,"日",null,"人",null,null,null,null,null,null,null,null,"が算定可能です",null,null,{"$f":"PRODUCT(C27,E27,G27)","v":0},"人時/月"]
[null,null,null,"時間/日",null,"日",null,"人",null,null,null,null,null,null,null,null,null,null,null,{"$f":"PRODUCT(C28,E28,G28)","v":0},"人時/月"]
[null,null,null,"時間/日",null,"日",null,"人",null,null,null,null,null,null,null,null,null,null,null,{"$f":"PRODUCT(C29,E29,G29)","v":0},"人時/月"]
[null,null,null,"時間/日",null,"日",null,"人",null,null,null,null,null,null,null,null,null,null,null,{"$f":"PRODUCT(C30,E30,G30)","v":0},"人時/月"]

{"sheet":"記入例","index":1,"n_rows":30,"n_cols":21,"rows_kept":30,"cut":false,"hidden":false,"merged":[[1,2,1,18],[25,1,26,1],[25,13,25,16]]}
["大規模型事業所（特例）計算シート　"]
[null,null,"　※このシートは事業所の参考のため作成されたものであり、提出の義務はありません。"]
[]
[null,"入力項目",null,null,null,null,null,null,null,null,"結果"]
[]
[null,"（１）太枠の中に前年の月毎延べ利用者数を入力してください。",null,null,null,null,800,"人",null,null,"■基本となる事業所規模"]
[null,null,null,null,null,null,null,null,null,null,{"$f":"IF($G$6<=750,\"750人以内（通常規模型）\",\"750人超（大規模型）\")","v":"750人超（大規模型）"}]
[]
[null,"（２）太枠の中に月当たりの利用者数と、加算を算定する利用者数を入力してください。"]
[null,"月当たりの全利用者数（要介護のみ）",19,"人",null,null,null,null,null,null,"■大規模型事業所（特例）の要件"]
[null,"ﾘﾊﾏﾈ加算を算定する利用者数",2,"人",null,null,null,null,null,null,"①リハビリテーションマネジメント加算の算定率80％以上"]
[null,null,null,null,null,null,null,null,null,null,{"$f":"IF(P12>=0.8,\"要件①を満たしている\",\"要件①を満たしていない\")","v":"要件①を満たしていない"},null,null,null,"算定率",{"$f":"$C$11/$C$10","v":0.10526315789473684}]
[null,null,null,null,null,null,null,null,null,null,null,null,null,null,"（あと",{"$f":"IF(P12<0.8,ROUNDUP(C10*0.8-C11,0),\"-\")","v":14},"名の算定が必要です）"]
[null,"（３）太枠の中に、利用時間毎の月延べ利用者数を入力してください。"]
[null,"１～２時間利用",200,"人",null,null,null,null,null,null,"②リハビリテーション専門職の配置が10:1以上"]
[null,"２～３時間利用",600,"人",null,null,null,null,null,null,{"$f":"IF($P$16<=10,\"要件②を満たしている\",\"要件②を満たしていない\")","v":"要件②を満たしていない"},null,null,null,"配置",{"$f":"$O$20/O22","v":11.561264822134387},":1配置"]
[null,"３～４時間利用",300,"人",null,null,null,null,null,null,null,null,null,null,"（あと",{"$f":"IF(P16>10,(O20/10-O22),\"-\")","v":158},"人時/月の配置が必要です）"]
[null,"４～５時間利用",100,"人"]
[null,"５～６時間利用",500,"人"]
[null,"６～７時間利用",500,"人",null,null,null,null,null,null,null,"・利用時間×利用人数の合計",null,null,{"$f":"C15*1+C16*2+C17*3+C18*4+C19*5+C20*6+C21*7","v":11700},"（人時/月）"]
[null,"７～８時間利用",500,"人"]
[null,null,null,null,null,null,null,null,null,null,null,"・ﾘﾊ専門職の勤務時間の合計",null,null,{"$f":"SUM(OFFSET(T26,0,0,COUNT(T:T),1))","v":1012},"（人時/月）"]
[null,"（４）太枠の中に、１日あたりの勤務時間、勤務日、該当する人数を入力してください。"]
[]
[null,null,"勤務時間/日",null,"勤務日/月",null,"該当する人数",null,null,null,null,null,null,null,null,null,null,null,null,"結果"]
[null,"所定労働時間のうち、通所ﾘﾊﾋﾞﾘﾃｰｼｮﾝの業務に従事している時間\n",8,"時間/日",20,"日",4,"人",null,null,null,null,"あなたの事業所は",{"$f":"IF(OR(G6<=750,AND(P12>=0.8,$P$16<=10)),\"通常規模型リハビリテーション費\",\"大規模型リハビリテーション費\")","v":"大規模型リハビリテーション費"},null,null,null,null,null,{"$f":"PRODUCT(C26,E26,G26)","v":640},"人時/月"]
[null,null,4.5,"時間/日",20,"日",2,"人",null,null,null,null,null,null,null,null,"が算定可能です",null,null,{"$f":"PRODUCT(C27,E27,G27)","v":180},"人時/月"]
[null,null,8,"時間/日",12,"日",1,"人",null,null,null,null,null,null,null,null,null,null,null,{"$f":"PRODUCT(C28,E28,G28)","v":96},"人時/月"]
[null,null,8,"時間/日",12,"日",1,"人",null,null,null,null,null,null,null,null,null,null,null,{"$f":"PRODUCT(C29,E29,G29)","v":96},"人時/月"]
[null,null,null,"時間/日",null,"日",null,"人",null,null,null,null,null,null,null,null,null,null,null,{"$f":"PRODUCT(C30,E30,G30)","v":0},"人時/月"]

{"sheet":"特例（参考）","index":2,"n_rows":12,"n_cols":3,"rows_kept":12,"cut":false,"hidden":false,"merged":[[11,2,11,14],[3,0,3,15],[6,1,6,14],[7,2,7,14],[8,1,8,14],[9,2,9,14],[10,1,10,14]]}
["大規模型事業所の特例該当　計算シート　参考資料"]
[]
["○指定居宅サービスに要する費用の額の算定に関する基準"]
["平均利用延人員数が750人超の事業所であっても、算定する月の前月において、以下に示す基準を満たしている場合は、通常規模型通所リハビリテーション費を算定することができる。\na 利用者の総数のうち、リハビリテーションマネジメント加算を算定した利用者の割合が80%以上であること。利用者の総数とは、前月に当該事業所において通所リハビリテーションを利用することを通所リハビリテーション計画上位置づけている者の人数とする。\nb 「専ら当該通所リハビリテーションの提供に当たる理学療法士、作業療法士又は言語聴覚士（以下、理学療法士等）が、利用者の数を10で除した数以上確保されていること」の要件の算出式は以下の通りとする。\n（通所リハビリテーション計画に位置付けられた利用時間 × 各利用時間の利用人数）の合計(※1)÷理学療法士等の通所リハビリテーション事業所における勤務時間の合計（※2) ≦ 10\n(※１)各利用時間の下限で計算する。（例：２～３時間利用の利用者が４人の場合、２（時間）×４（人）として計算。）\n(※２)所定労働時間のうち通所リハビリテーション事業所の業務に従事することとされている時間とし、必ずしも利用者に対し通所リハビリテーションを提供している時間に限らないことに留意する。"]
[]
["○「令和６年度介護報酬改定に関するＱ＆Ａ（Vol.１）（令和６年３月15日）"]
["問75","平均利用者延人員数が 750 人超の事業所であっても、通常規模型通所リハビリテーション費を算定可能とする要件の一つに「専ら当該通所リハビリテーションの提供に当たる理学療法士、作業療法士又は言語聴覚士が、利用者の数を 10 で除した数以上確保されていること」とあるが、どのように算出するのか。"]
[null,"（答）","算出式は以下の通り。なお、「専ら当該通所リハビリテーションの提供に当たる」とは、当該通所リハビリテーション事業所の業務に従事する時間をいい、必ずしも利用者に対し通所リハビリテーションを提供している時間に限らないことに留意すること。\n\n\n\n\n\n\n例１：\n・月20日営業\n・１月あたりの利用時間ごとの利用延人数：１～２時間利用が200人、３～４時間利用が600人、６～７時間利用が400人\n・１日８時間当該業務に従事するリハビリテーション専門職が２人、６時間業務に従事するリハビリテーション専門職が1人配置\n\n\n\n\n\n例２：\n・月20日営業\n・１月あたりの利用時間ごとの利用延人数：１～２時間利用が 1200 人、６～７時間利用が 600 人\n・１日８時間業務に従事するリハビリテーション専門職が２人\n\n\n\n\n"]
["問76","平均利用者延人員数が750人超の事業所であっても、通常規模型通所リハビリテーション費の算定を可能とする要件のうち、「専らリハビリテーションの提供に当た\nる理学療法士等が利用者の数を 10 で除した数以上確保されていること」に係る留意事項通知における「所定労働時間のうち通所リハビリテーション事業所の業務に従事することとされている時間」には、事業所外で退院前カンファレンスに参加している時間等は含まれるのか。"]
[null,"（答）","・含まれる。\n・事業所外の業務に従事している時間であっても、通所リハビリテーション事業所に係る業務であれば、「専らリハビリテーションの提供に当たる理学療法士等が利用者の数を10で除した数以上確保されていること」の算出式にある「理学療法士等の通所リハビリテーション事業所における勤務時間の合計」に含めることができる。"]
["問77","平均利用者延人員数が 750 人超の事業所であっても、通常規模型通所リハビリテーション費の算定を可能とする場合の要件のうち、リハビリテーションマネジメント加算を算定した利用者の割合については、居宅サービス計画において、当該事業所の利用及び加算の算定が計画されている者を対象として計算することとして差し支えないか。また、理学療法士等の配置については、あらかじめ計画された利用時間や利用人数、勤務表上予定された理学療法士等の勤務時間を用いて、計算することとして差し支えないか。"]
[null,"（答）","差し支えない。"]